[Event "Gibraltar Junior Intl U16 2019"]
[Site "Caleta"]
[Date "2019.08.16"]
[Round "1.1"]
[White "Garrido Outon, Alex"]
[Black "Walker, Max"]
[Result "1-0"]
[ECO "B09"]
[WhiteElo "2231"]
[BlackElo "1667"]
[Annotator "RC"]
[PlyCount "103"]
[EventDate "2019.08.16"]
[EventType "swiss"]
[EventCountry "GGB"]
[SourceTitle "playchess.com"]
[Source "ChessBase"]
[SourceQuality "1"]
[TimeControl "6600+10"]

1. e4 {[%emt 0:00:00]} d6 {[%emt 0:00:01]} 2. d4 {[%emt 0:00:00]} Nf6 {[%emt 0:00:08]} 3. Nc3 {[%emt 0:00:00]} g6 {[%emt 0:00:25]} 4. f4 {[%emt 0:00:02]} Bg7 {[%emt 0:00:30]} 5. Nf3 {[%emt 0:00:06]} c6 {[%emt 0:02:18]} 6. Bd3 {[%emt 0:02:16]} O-O {[%emt 0:02:20]} 7. O-O {[%emt 0:02:22]} Nbd7 {[%emt 0:06:02]} 8. e5 {[%emt 0:08:02]} dxe5 {[%emt 0:01:56]} 9. fxe5 {[%emt 0:05:15]} Nd5 {[%emt 0:05:08]} 10. a3 {[%emt 0:14:36]} Nxc3 {[%emt 0:14:32]} 11. bxc3 {[%emt 0:00:03]} b6 {[%emt 0:04:46]} 12. a4 {[%emt 0:05:25]} e6 {[%emt 0:06:41]} 13. Qe1 {[%emt 0:09:13]} a5 {[%emt 0:08:34]} 14. Bg5 {[%emt 0:02:47]} Qe8 {[%emt 0:01:26]} 15. Qh4 {[%emt 0:00:32]} f6 {[%emt 0:03:29]} 16. exf6 {[%emt 0:01:04]} Nxf6 {[%emt 0:00:45]} 17. Ne5 {[%emt 0:01:12]} Nd5 {[%emt 0:02:04]} 18. Rxf8+ {[%emt 0:04:56]} Bxf8 {[%emt 0:00:15]} 19. Rf1 {[%emt 0:00:13]} Ra7 {[%emt 0:00:15]} 20. c4 {[%emt 0:04:06]} Nb4 {[%emt 0:01:04]} 21. Be4 {[%emt 0:00:15]} Bg7 {[%emt 0:00:21]} 22. Bf6 {[%emt 0:00:33]} Bxf6 {[%emt 0:08:08]} 23. Rxf6 {[%emt 0:02:31]} Rg7 {[%emt 0:01:57]} 24. c3 {[%emt 0:00:29]} Na6 {[%emt 0:03:08]} 25. Qf2 {[%emt 0:03:22]} Bd7 {[%emt 0:04:27]} 26. Ng4 {[%emt 0:02:19]} Re7 {[%emt 0:01:17]} 27. Rxg6+ {[%emt 0:00:52]} hxg6 {[%emt 0:00:37]} 28. Nf6+ {[%emt 0:00:01]} Kg7 {[%emt 0:00:40]} 29. Nxe8+ {[%emt 0:00:06]} Bxe8 {[%emt 0:00:24]} 30. Qg3 {[%emt 0:00:48]} e5 {[%emt 0:00:44]} 31. dxe5 {[%emt 0:00:28]} Nc5 {[%emt 0:00:06]} 32. Bc2 {[%emt 0:00:02]} Bf7 {[%emt 0:01:10]} 33. Qg5 {[%emt 0:02:02]} Re6 {[%emt 0:01:15]} 34. h4 {[%emt 0:01:05]} Nd7 {[%emt 0:00:37]} 35. h5 {[%emt 0:02:26]} Nxe5 {[%emt 0:01:24]} 36. c5 {[%emt 0:06:35]} bxc5 {[%emt 0:00:35]} 37. hxg6 {[%emt 0:00:47]} Bxg6 {[%emt 0:00:14]} 38. Bxg6 {[%emt 0:01:00]} Nf3+ {[%emt 0:01:44]} 39. gxf3 {[%emt 0:00:02]} Rxg6 {[%emt 0:00:05]} 40. Qxg6+ {[%emt 0:00:03]} Kxg6 {[%emt 0:00:07]} 41. Kf2 {[%emt 0:00:06]} Kf5 {[%emt 0:01:31]} 42. Ke3 {[%emt 0:00:38]} Ke5 {[%emt 0:00:13]} 43. c4 {[%emt 0:00:15]} Kf5 {[%emt 0:01:17]} 44. f4 {[%emt 0:00:02]} Kf6 {[%emt 0:00:42]} 45. Ke4 {[%emt 0:00:01]} Ke6 {[%emt 0:00:08]} 46. f5+ {[%emt 0:00:02]} Kd6 {[%emt 0:00:28]} 47. Kf4 {[%emt 0:00:04]} Kd7 {[%emt 0:00:16]} 48. Ke5 {[%emt 0:00:03]} Ke7 {[%emt 0:00:04]} 49. f6+ {[%emt 0:00:06]} Kf7 {[%emt 0:00:02]} 50. Kf5 {[%emt 0:00:11]} Kg8 {[%emt 0:00:11]} 51. Ke6 {[%emt 0:00:02]} Kf8 {[%emt 0:00:07]} 52. f7 {[%emt 0:00:10]} 1-0

[Event "Gibraltar Junior Intl U16 2019"]
[Site "Caleta"]
[Date "2019.08.16"]
[Round "1.2"]
[White "Shepherd, Tom"]
[Black "Cuellar Montes, Alejandro"]
[Result "0-1"]
[ECO "D38"]
[WhiteElo "1659"]
[BlackElo "2143"]
[Annotator "ChessBase"]
[PlyCount "162"]
[EventDate "2019.08.16"]
[EventType "swiss"]
[EventCountry "GGB"]
[SourceTitle "playchess.com"]
[Source "ChessBase"]
[SourceQuality "1"]
[TimeControl "6600+10"]

1. d4 {[%emt 0:00:00]} Nf6 {[%emt 0:00:03]} 2. Nf3 {[%emt 0:00:00]} e6 {[%emt 0:00:10]} 3. c4 {[%emt 0:00:00]} d5 {[%emt 0:00:04]} 4. Nc3 {[%emt 0:00:03]} Bb4 {[%emt 0:00:43]} 5. Qa4+ {[%emt 0:00:14]} Nc6 {[%emt 0:00:06]} 6. e3 {[%emt 0:00:03]} O-O {[%emt 0:00:36]} 7. Bd2 {[%emt 0:00:04]} Bd7 {[%emt 0:03:27]} 8. Qc2 {[%emt 0:01:37]} Bxc3 {[%emt 0:03:34]} 9. Bxc3 {[%emt 0:00:38]} Ne4 {[%emt 0:00:09]} 10. Bd3 {[%emt 0:00:14]} f5 {[%emt 0:00:33]} 11. b4 {[%emt 0:07:45]} Qe7 {[%emt 0:04:53]} 12. a3 {[%emt 0:04:29]} Nd8 {[%emt 0:02:23]} 13. Ne5 {[%emt 0:05:23]} Nf7 {[%emt 0:01:33]} 14. Nxf7 {[%emt 0:02:24]} Rxf7 {[%emt 0:00:33]} 15. O-O {[%emt 0:00:15]} Raf8 {[%emt 0:06:05]} 16. f3 {[%emt 0:02:20]} Nxc3 {[%emt 0:00:15]} 17. Qxc3 {[%emt 0:00:07]} c6 {[%emt 0:00:06]} 18. c5 {[%emt 0:02:55]} g5 {[%emt 0:00:25]} 19. e4 {[%emt 0:04:44]} fxe4 {[%emt 0:02:54]} 20. fxe4 {[%emt 0:00:50]} Rf4 {[%emt 0:00:11]} 21. e5 {[%emt 0:07:35]} Kh8 {[%emt 0:02:18]} 22. Be2 {[%emt 0:05:06]} g4 {[%emt 0:05:41]} 23. Qd3 {[%emt 0:07:45]} Be8 {[%emt 0:03:20]} 24. g3 {[%emt 0:03:53]} Rxf1+ {[%emt 0:12:00]} 25. Rxf1 {[%emt 0:01:11]} Rxf1+ {[%emt 0:00:05]} 26. Kxf1 {[%emt 0:00:31]} Qg5 {[%emt 0:00:06]} 27. Kf2 {[%emt 0:03:35]} Bg6 {[%emt 0:14:59]} 28. Qe3 {[%emt 0:04:54]} Qh5 {[%emt 0:01:51]} 29. Kg1 {[%emt 0:04:00]} Bf5 {[%emt 0:04:35]} 30. Qf4 {[%emt 0:01:04]} Qg6 {[%emt 0:02:13]} 31. Kf2 {[%emt 0:01:33]} Kg7 {[%emt 0:01:17]} 32. Bd1 {[%emt 0:01:18]} h5 {[%emt 0:00:33]} 33. Be2 {[%emt 0:00:56]} Kh7 {[%emt 0:00:17]} 34. Bd1 {[%emt 0:01:01]} Qg7 {[%emt 0:00:09]} 35. Be2 {[%emt 0:01:05]} Kg6 {[%emt 0:00:15]} 36. Bd1 {[%emt 0:01:58]} Qh8 {[%emt 0:03:33]} 37. Be2 {[%emt 0:00:40]} Qa8 {[%emt 0:01:14]} 38. Qd2 {[%emt 0:00:37]} Qd8 {[%emt 0:00:47]} 39. a4 {[%emt 0:01:51]} b6 {[%emt 0:03:14]} 40. Qc3 {[%emt 0:02:28]} h4 {[%emt 0:01:17]} 41. gxh4 {[%emt 0:03:24]} Qxh4+ {[%emt 0:00:18]} 42. Qg3 {[%emt 0:00:04]} Qg5 {[%emt 0:00:16]} 43. Qe3 {[%emt 0:00:44]} Qd8 {[%emt 0:00:37]} 44. Qf4 {[%emt 0:01:28]} bxc5 {[%emt 0:00:49]} 45. bxc5 {[%emt 0:01:04]} Qh4+ {[%emt 0:03:06]} 46. Qg3 {[%emt 0:00:07]} Qh5 {[%emt 0:04:12]} 47. Qf4 {[%emt 0:00:42]} Kh7 {[%emt 0:03:08]} 48. Kg3 {[%emt 0:01:19]} Qh3+ {[%emt 0:00:42]} 49. Kf2 {[%emt 0:00:05]} Qh4+ {[%emt 0:10:40]} 50. Qg3 {[%emt 0:00:14]} Qh5 {[%emt 0:00:33]} 51. Qf4 {[%emt 0:00:34]} Kg7 {[%emt 0:00:22]} 52. Kg3 {[%emt 0:00:23]} Qh3+ {[%emt 0:00:05]} 53. Kf2 {[%emt 0:00:03]} Kf7 {[%emt 0:00:53]} 54. Qg3 {[%emt 0:01:09]} Qh5 {[%emt 0:00:10]} 55. Qf4 {[%emt 0:00:09]} Ke8 {[%emt 0:00:07]} 56. Kg3 {[%emt 0:01:55]} Qh3+ {[%emt 0:00:05]} 57. Kf2 {[%emt 0:00:05]} Kd7 {[%emt 0:01:28]} 58. a5 {[%emt 0:01:18]} Qh4+ {[%emt 0:01:24]} 59. Qg3 {[%emt 0:00:40]} Qh6 {[%emt 0:00:27]} 60. Bxg4 {[%emt 0:05:03]} Qd2+ {[%emt 0:00:11]} 61. Be2 {[%emt 0:00:04]} Qxd4+ {[%emt 0:00:05]} 62. Qe3 {[%emt 0:00:04]} Qh4+ {[%emt 0:00:35]} 63. Qg3 {[%emt 0:00:36]} Qd4+ {[%emt 0:00:24]} 64. Qe3 {[%emt 0:00:04]} Qb4 {[%emt 0:00:10]} 65. a6 {[%emt 0:02:18]} d4 {[%emt 0:00:04]} 66. Qg5 {[%emt 0:00:36]} Qxc5 {[%emt 0:00:16]} 67. Qg7+ {[%emt 0:00:45]} Qe7 {[%emt 0:00:04]} 68. Qf6 {[%emt 0:01:00]} Qxf6 {[%emt 0:00:26]} 69. exf6 {[%emt 0:00:10]} Bg6 {[%emt 0:00:19]} 70. Bg4 {[%emt 0:01:36]} Bf5 {[%emt 0:00:29]} 71. Bf3 {[%emt 0:00:59]} Ke8 {[%emt 0:00:23]} 72. Bh5+ {[%emt 0:00:39]} Kf8 {[%emt 0:00:04]} 73. Ke2 {[%emt 0:00:19]} c5 {[%emt 0:00:06]} 74. h4 {[%emt 0:00:47]} c4 {[%emt 0:00:06]} 75. Kd2 {[%emt 0:00:18]} c3+ {[%emt 0:00:05]} 76. Kc1 {[%emt 0:00:06]} e5 {[%emt 0:00:10]} 77. Kd1 {[%emt 0:00:13]} e4 {[%emt 0:00:04]} 78. Ke1 {[%emt 0:00:04]} e3 {[%emt 0:00:04]} 79. Kd1 {[%emt 0:00:04]} d3 {[%emt 0:00:09]} 80. Bf3 {[%emt 0:00:08]} c2+ {[%emt 0:00:12]} 81. Kc1 {[%emt 0:00:04]} d2+ {[%emt 0:00:07]} 0-1

[Event "Gibraltar Junior Intl U16 2019"]
[Site "Caleta"]
[Date "2019.08.16"]
[Round "1.3"]
[White "Perez Beltran, Salvador"]
[Black "Patel, Devan"]
[Result "1-0"]
[ECO "C69"]
[WhiteElo "2103"]
[BlackElo "1659"]
[Annotator "ChessBase"]
[PlyCount "93"]
[EventDate "2019.08.16"]
[EventType "swiss"]
[EventCountry "GGB"]
[SourceTitle "playchess.com"]
[Source "ChessBase"]
[SourceQuality "1"]
[TimeControl "6600+10"]

1. e4 {[%emt 0:00:00]} e5 {[%emt 0:00:00]} 2. Nf3 {[%emt 0:00:00]} Nc6 {[%emt 0:00:00]} 3. Bb5 {[%emt 0:00:01]} a6 {[%emt 0:00:02]} 4. Bxc6 {[%emt 0:00:04]} dxc6 {[%emt 0:00:04]} 5. O-O {[%emt 0:00:06]} f6 {[%emt 0:00:02]} 6. d4 {[%emt 0:00:04]} exd4 {[%emt 0:00:03]} 7. Nxd4 {[%emt 0:00:04]} c5 {[%emt 0:00:04]} 8. Nb3 {[%emt 0:00:16]} Qxd1 {[%emt 0:00:06]} 9. Rxd1 {[%emt 0:00:05]} Be6 {[%emt 0:00:05]} 10. Bf4 {[%emt 0:01:19]} c4 {[%emt 0:00:06]} 11. Nd4 {[%emt 0:03:30]} O-O-O {[%emt 0:00:07]} 12. Nc3 {[%emt 0:01:06]} Bf7 {[%emt 0:00:07]} 13. Nd5 {[%emt 0:10:29]} Bxd5 {[%emt 0:27:19]} 14. exd5 {[%emt 0:00:23]} Rxd5 {[%emt 0:22:27]} 15. Ne6 {[%emt 0:00:51]} Ne7 {[%emt 0:05:08]} 16. Nxc7 {[%emt 0:02:41]} Rxd1+ {[%emt 0:10:02]} 17. Rxd1 {[%emt 0:00:02]} g5 {[%emt 0:02:22]} 18. Ne6 {[%emt 0:04:07]} Nc6 {[%emt 0:01:54]} 19. Bg3 {[%emt 0:03:27]} Bb4 {[%emt 0:06:09]} 20. f4 {[%emt 0:13:03]} gxf4 {[%emt 0:01:58]} 21. Nxf4 {[%emt 0:03:36]} Bc5+ {[%emt 0:02:37]} 22. Bf2 {[%emt 0:01:16]} Bxf2+ {[%emt 0:01:14]} 23. Kxf2 {[%emt 0:00:01]} Ne5 {[%emt 0:14:10]} 24. h3 {[%emt 0:08:11]} Rd8 {[%emt 0:04:51]} 25. Rxd8+ {[%emt 0:03:16]} Kxd8 {[%emt 0:00:05]} 26. Nd5 {[%emt 0:00:13]} Nd7 {[%emt 0:01:43]} 27. Ke3 {[%emt 0:00:44]} Ke8 {[%emt 0:00:08]} 28. Kd4 {[%emt 0:00:41]} Kf7 {[%emt 0:00:38]} 29. Kxc4 {[%emt 0:00:20]} Ke6 {[%emt 0:00:19]} 30. Kd4 {[%emt 0:00:58]} Kf5 {[%emt 0:01:37]} 31. Ke3 {[%emt 0:01:08]} Ke5 {[%emt 0:00:31]} 32. Nf4 {[%emt 0:00:42]} Nb6 {[%emt 0:00:26]} 33. b3 {[%emt 0:00:53]} Nc8 {[%emt 0:00:51]} 34. Nd3+ {[%emt 0:00:47]} Kd5 {[%emt 0:00:09]} 35. c4+ {[%emt 0:00:12]} Kd6 {[%emt 0:00:34]} 36. Kf4 {[%emt 0:00:26]} Ne7 {[%emt 0:00:07]} 37. g4 {[%emt 0:00:24]} Kc6 {[%emt 0:00:45]} 38. Ke4 {[%emt 0:00:43]} b6 {[%emt 0:00:16]} 39. Nb4+ {[%emt 0:00:28]} Kb7 {[%emt 0:00:05]} 40. Nd5 {[%emt 0:00:09]} Nc6 {[%emt 0:00:39]} 41. Nxf6 {[%emt 0:00:41]} Nb4 {[%emt 0:00:10]} 42. a3 {[%emt 0:00:37]} Nc2 {[%emt 0:00:06]} 43. Nxh7 {[%emt 0:00:37]} Nxa3 {[%emt 0:00:04]} 44. g5 {[%emt 0:00:15]} Nxc4 {[%emt 0:00:10]} 45. bxc4 {[%emt 0:00:13]} a5 {[%emt 0:00:04]} 46. g6 {[%emt 0:00:19]} a4 {[%emt 0:00:03]} 47. g7 {[%emt 0:00:11]} 1-0

[Event "Gibraltar Junior Intl U16 2019"]
[Site "Caleta"]
[Date "2019.08.16"]
[Round "1.4"]
[White "Hirst, Joe"]
[Black "Cesar Maestre, Bernardo"]
[Result "0-1"]
[ECO "B92"]
[WhiteElo "1639"]
[BlackElo "2084"]
[Annotator "NA"]
[PlyCount "92"]
[EventDate "2019.08.16"]
[EventType "swiss"]
[EventCountry "GGB"]
[SourceTitle "playchess.com"]
[Source "ChessBase"]
[SourceQuality "1"]
[TimeControl "6600+10"]

1. e4 {[%emt 0:00:00]} c5 {[%emt 0:00:00]} 2. Nf3 {[%emt 0:00:00]} d6 {[%emt 0:00:07]} 3. d4 {[%emt 0:00:04]} cxd4 {[%emt 0:00:18]} 4. Nxd4 {[%emt 0:00:11]} Nf6 {[%emt 0:00:06]} 5. Nc3 {[%emt 0:00:07]} a6 {[%emt 0:00:04]} 6. Be2 {[%emt 0:00:09]} e5 {[%emt 0:00:07]} 7. Nb3 {[%emt 0:00:06]} Be7 {[%emt 0:00:05]} 8. O-O {[%emt 0:00:10]} O-O {[%emt 0:00:08]} 9. Be3 {[%emt 0:00:06]} Be6 {[%emt 0:00:22]} 10. Nd5 {[%emt 0:00:17]} Bxd5 {[%emt 0:01:01]} 11. exd5 {[%emt 0:00:14]} Nbd7 {[%emt 0:00:07]} 12. c4 {[%emt 0:00:44]} b6 {[%emt 0:00:54] B92: Sicilian Najdorf: 6 Be2} (12... a5 13. Nd2 Ne8 14. g3 f5 15. f4 g6 16. Kh1 b6 17. Nb1 Nc5 18. Nc3 Bf6 19. Qd2 Nc7 20. Rae1 {1-0 (42) Stojanovic,D (2499)-Bogut,Z (2434) Bol 2015}) 13. f4 {[%emt 0:01:35]} Rc8 {[%emt 0:01:05]} 14. Rc1 {[%emt 0:04:07]} Ne4 $146 {[%emt 0:01:20]} ({Predecessor:} 14... exf4 15. Bxf4 Qc7 16. Kh1 Nc5 17. Nd4 Qd7 18. Nc6 Rfe8 19. b4 Nb7 20. Qd4 Bd8 21. Bd3 Rxc6 22. dxc6 Qxc6 23. Rce1 a5 24. Rxe8+ Nxe8 25. Be4 Qd7 26. Qd5 Qg4 27. Qxb7 {1-0 (27) Velasquez,E (1931)-Flores Medina,A Cumana 2014}) 15. Bf3 {[%emt 0:08:28]} Nec5 {[%emt 0:01:07]} 16. Bxc5 {[%emt 0:01:15]} bxc5 {[%emt 0:00:11]} 17. fxe5 {[%emt 0:15:41]} Nxe5 {[%emt 0:00:25]} 18. Qc2 {[%emt 0:01:05]} f5 {[%emt 0:00:49]} 19. Rce1 {[%emt 0:05:43]} Bf6 {[%emt 0:01:33]} 20. Nc1 {[%emt 0:03:14]} Qd7 {[%emt 0:03:26]} 21. b3 {[%emt 0:01:30]} Rce8 {[%emt 0:00:06]} 22. Nd3 {[%emt 0:03:34]} Nxf3+ {[%emt 0:00:11]} 23. Rxf3 {[%emt 0:00:25]} Rxe1+ {[%emt 0:00:30]} 24. Nxe1 {[%emt 0:00:19]} Qe7 {[%emt 0:00:40]} 25. Nd3 {[%emt 0:06:42]} Qe4 {[%emt 0:00:51]} 26. Qd2 {[%emt 0:07:03]} g6 {[%emt 0:14:11]} 27. Kf1 {[%emt 0:07:56]} Re8 {[%emt 0:02:30]} 28. Rf2 {[%emt 0:01:46]} Qd4 {[%emt 0:04:23]} 29. Re2 {[%emt 0:10:33]} Re4 {[%emt 0:13:43]} 30. Ne1 {[%emt 0:09:45]} (30. Nf2 $11 Qa1+ 31. Re1 Rxe1+ 32. Qxe1) 30... Qe5 {[%emt 0:03:02]} 31. Nf3 {[%emt 0:06:07]} Qe7 {[%emt 0:00:07]} 32. Qe1 {[%emt 0:01:20]} Kg7 {[%emt 0:01:15]} 33. Nd2 {[%emt 0:02:30]} Rf4+ {[%emt 0:02:50]} 34. Rf2 {[%emt 0:03:06]} Rxf2+ $17 {[%emt 0:00:37]} 35. Kxf2 {[%emt 0:00:51]} Bd4+ {[%emt 0:03:32]} 36. Kf1 {[%emt 0:00:13]} Qf6 {[%emt 0:01:10]} 37. Qe2 {[%emt 0:01:11]} Bc3 {[%emt 0:04:00]} 38. Nf3 {[%emt 0:01:49]} g5 {[%emt 0:00:38]} 39. Qe3 {[%emt 0:02:33]} h6 {[%emt 0:00:43]} 40. g3 {[%emt 0:02:24]} Ba5 {[%emt 0:02:06]} 41. Ng1 {[%emt 0:01:14]} Qa1+ {[%emt 0:00:16]} 42. Kg2 {[%emt 0:00:29]} Qe5 {[%emt 0:01:40]} 43. Qf2 {[%emt 0:00:19]} Kf6 {[%emt 0:00:33]} 44. Nf3 {[%emt 0:00:08]} Qe4 {[%emt 0:01:25]} 45. Kf1 {[%emt 0:00:07]} Bc3 {[%emt 0:01:55]} 46. Kg2 {[%emt 0:00:11]} g4 {[%emt 0:00:07] Ng1} 0-1

[Event "Gibraltar Junior Intl U16 2019"]
[Site "Caleta"]
[Date "2019.08.16"]
[Round "1.5"]
[White "Kracht, Raphael"]
[Black "Major, Richard"]
[Result "1-0"]
[ECO "C08"]
[WhiteElo "2072"]
[BlackElo "1615"]
[Annotator "NA"]
[PlyCount "71"]
[EventDate "2019.08.16"]
[EventType "swiss"]
[EventCountry "GGB"]
[SourceTitle "playchess.com"]
[Source "ChessBase"]
[SourceQuality "1"]
[TimeControl "6600+10"]

1. e4 {[%emt 0:00:00]} e6 {[%emt 0:00:00]} 2. d4 {[%emt 0:00:00]} d5 {[%emt 0:00:00]} 3. Nd2 {[%emt 0:00:00]} c5 {[%emt 0:00:09]} 4. exd5 {[%emt 0:00:04]} exd5 {[%emt 0:00:09]} 5. Ngf3 {[%emt 0:00:17]} Nf6 {[%emt 0:00:34]} 6. Bb5+ {[%emt 0:01:17]} Bd7 {[%emt 0:00:16]} 7. Bxd7+ {[%emt 0:00:12]} Nbxd7 {[%emt 0:00:27]} 8. O-O {[%emt 0:00:22]} Be7 {[%emt 0:00:58]} 9. dxc5 {[%emt 0:00:40] C08: French Tarrasch: 3...c5 4 exd5 exd5 sidelines} O-O {[%emt 0:00:57]} (9... Nxc5 10. Nd4 O-O 11. Nf5 Re8 12. Nxe7+ Qxe7 13. Nb3 Nce4 14. Nd4 Qc7 15. c3 h6 16. f3 Nd6 17. Bf4 Nh5 18. Bxd6 Qxd6 19. Qd2 {½-½ (73) Vallejo Pons,F (2707)-Savchenko,B (2566) Riadh 2017}) 10. b4 {[%emt 0:11:04]} a5 {[%emt 0:00:11]} 11. c3 {[%emt 0:01:35]} Qc7 $146 {[%emt 0:01:32]} ({Predecessor:} 11... Ne4 12. Nxe4 dxe4 13. Nd4 Bf6 14. Be3 axb4 15. cxb4 Ra3 16. Qc2 Rd3 {1-0 (27) Remete,E (2068)-Palla,G (2082) Hungary 2011}) 12. Bb2 {[%emt 0:08:25]} Rad8 {[%emt 0:05:26]} 13. Nb3 {[%emt 0:02:43]} axb4 {[%emt 0:02:01]} 14. cxb4 {[%emt 0:00:11]} Rfe8 {[%emt 0:01:31]} 15. Nbd4 {[%emt 0:03:18]} b6 {[%emt 0:08:22]} 16. c6 {[%emt 0:09:44]} Nb8 {[%emt 0:04:55]} 17. Rc1 {[%emt 0:04:37]} b5 {[%emt 0:02:17]} 18. Nxb5 {[%emt 0:01:47]} Qb6 {[%emt 0:00:16]} 19. c7 {[%emt 0:00:37]} Qxb5 {[%emt 0:01:05]} 20. cxd8=Q {[%emt 0:01:02]} Rxd8 {[%emt 0:00:17]} 21. a3 {[%emt 0:01:37]} Ne4 {[%emt 0:03:08]} 22. Nd4 {[%emt 0:03:43]} Qb6 {[%emt 0:01:18]} 23. Nf5 {[%emt 0:02:13]} Bg5 {[%emt 0:00:36]} 24. Rc2 {[%emt 0:02:29]} g6 {[%emt 0:03:11]} 25. Qd4 {[%emt 0:02:27]} Qxd4 {[%emt 0:01:56]} 26. Nxd4 {[%emt 0:00:10]} Nd2 {[%emt 0:00:48]} 27. Bc1 {[%emt 0:01:43]} Nxf1 {[%emt 0:00:04]} 28. Bxg5 {[%emt 0:00:07]} f6 {[%emt 0:00:40]} 29. Bc1 {[%emt 0:00:30]} Nxh2 {[%emt 0:00:30]} 30. Kxh2 {[%emt 0:00:11]} Nd7 {[%emt 0:00:02]} 31. Be3 {[%emt 0:00:42]} Ne5 {[%emt 0:01:17]} 32. Nc6 {[%emt 0:00:47]} Ng4+ {[%emt 0:00:51]} 33. Kg3 {[%emt 0:00:17]} Nxe3 {[%emt 0:00:10]} 34. fxe3 {[%emt 0:00:05]} Re8 {[%emt 0:01:25]} 35. Kf3 {[%emt 0:00:08]} h5 $18 {[%emt 0:00:26]} 36. b5 {[%emt 0:00:11]} 1-0

[Event "Gibraltar Junior Intl U16 2019"]
[Site "Caleta"]
[Date "2019.08.16"]
[Round "1.6"]
[White "Kuzhelev, Timur"]
[Black "Tadevosyan, Aspet"]
[Result "1-0"]
[ECO "B25"]
[WhiteElo "1597"]
[BlackElo "2038"]
[Annotator "NA"]
[PlyCount "113"]
[EventDate "2019.08.16"]
[EventType "swiss"]
[EventCountry "GGB"]
[SourceTitle "playchess.com"]
[Source "ChessBase"]
[SourceQuality "1"]
[TimeControl "6600+10"]

1. e4 {[%emt 0:00:09]} c5 {[%emt 0:00:00]} 2. Nf3 {[%emt 0:00:03]} d6 {[%emt 0:00:12]} 3. d3 {[%emt 0:00:04]} Nc6 {[%emt 0:00:35]} 4. g3 {[%emt 0:00:04]} g6 {[%emt 0:00:34]} 5. Bg2 {[%emt 0:00:04]} Bg7 {[%emt 0:00:15]} 6. O-O {[%emt 0:00:05]} e5 {[%emt 0:04:10]} 7. Nc3 {[%emt 0:00:10]} Nge7 {[%emt 0:00:18]} 8. Ne2 {[%emt 0:00:22] B25: Closed Sicilian: 3 g3, lines without early Be3} (8. Nd2 O-O 9. Nc4 Be6 10. Nd5 Kh8 11. c3 Qd7 12. a4 f5 13. a5 Bg8 14. Nxe7 Nxe7 15. Qa4 Rad8 16. Bg5 Bf6 17. Bxf6+ Rxf6 18. exf5 gxf5 {1-0 (56) Grischuk,A (2767)-Gelfand,B (2695) Moscow 2018}) 8... d5 {[%emt 0:04:09]} 9. Nd2 {[%emt 0:00:28]} O-O {[%emt 0:00:54]} 10. f4 $146 {[%emt 0:00:28]} ({Predecessor:} 10. Nc3 Be6 11. exd5 Nxd5 12. Nde4 Nxc3 13. bxc3 Qa5 14. c4 Nd4 15. Nd6 Qb6 {0-1 (35) Igriashvili,Z (2425)-Chuiko,A (2309) Tula 2000}) 10... exf4 {[%emt 0:09:12]} 11. Nxf4 {[%emt 0:00:18]} d4 {[%emt 0:00:32]} 12. Nf3 {[%emt 0:01:01]} Bg4 {[%emt 0:02:52]} 13. Bd2 {[%emt 0:03:38]} Ne5 {[%emt 0:01:54]} 14. h3 {[%emt 0:00:07]} Bxf3 {[%emt 0:00:57]} 15. Bxf3 {[%emt 0:00:04]} Qd7 {[%emt 0:00:49]} 16. Kg2 {[%emt 0:01:14]} Rac8 {[%emt 0:03:29]} 17. b3 {[%emt 0:02:48]} h6 {[%emt 0:02:26]} 18. h4 {[%emt 0:03:04]} g5 {[%emt 0:15:25]} 19. hxg5 {[%emt 0:01:00]} hxg5 {[%emt 0:00:00]} 20. Nh5 {[%emt 0:00:01]} f6 {[%emt 0:00:00]} 21. Nxg7 {[%emt 0:02:07]} Kxg7 {[%emt 0:00:04]} 22. Bh5 {[%emt 0:00:22]} Rh8 {[%emt 0:01:47]} 23. Rh1 {[%emt 0:02:47]} Rh7 {[%emt 0:02:31]} 24. Qe2 {[%emt 0:01:02]} Rch8 {[%emt 0:01:51]} 25. g4 {[%emt 0:01:07]} N7g6 {[%emt 0:00:53]} 26. Bxg6 {[%emt 0:00:26]} Rxh1 {[%emt 0:00:20]} 27. Rxh1 {[%emt 0:00:32]} Rxh1 {[%emt 0:00:08]} 28. Bf5 {[%emt 0:00:10]} Qe8 {[%emt 0:05:34]} 29. Kxh1 {[%emt 0:00:05]} Qh8+ {[%emt 0:00:19]} 30. Kg2 {[%emt 0:00:06]} Qf8 {[%emt 0:00:41]} 31. Be1 {[%emt 0:01:23]} b5 {[%emt 0:00:47]} 32. Bg3 {[%emt 0:00:05]} b4 {[%emt 0:00:13]} 33. Bxe5 {[%emt 0:00:16]} fxe5 {[%emt 0:00:01]} 34. Qf1 {[%emt 0:00:12]} a5 {[%emt 0:00:30]} 35. Qh1 {[%emt 0:00:05]} Qh8 {[%emt 0:00:15]} 36. Qe1 {[%emt 0:00:27]} Qh6 {[%emt 0:00:26]} 37. Qg3 {[%emt 0:00:05]} Qf6 {[%emt 0:02:57]} 38. Qh2 {[%emt 0:00:10]} Kf8 {[%emt 0:00:20]} 39. Kf3 {[%emt 0:00:42]} Qg7 {[%emt 0:00:16]} 40. Ke2 {[%emt 0:00:54]} Ke7 {[%emt 0:00:33]} 41. Kd1 {[%emt 0:00:13]} Kf8 {[%emt 0:00:54]} 42. Kc1 {[%emt 0:00:10]} Ke7 {[%emt 0:00:12]} 43. Kb2 {[%emt 0:00:05]} Kd6 {[%emt 0:00:33]} 44. Qh5 {[%emt 0:00:04]} Ke7 {[%emt 0:00:14]} 45. Qh3 {[%emt 0:01:03]} Kf6 {[%emt 0:00:51]} 46. Qf1 {[%emt 0:00:03]} Ke7 {[%emt 0:00:18]} 47. Bc8 {[%emt 0:00:11]} Kd6 {[%emt 0:04:50]} 48. Qf5 {[%emt 0:00:06]} Qe7 {[%emt 0:01:13]} 49. Ba6 {[%emt 0:00:16]} Qg7 {[%emt 0:01:41]} 50. Qc8 {[%emt 0:00:13]} Qd7 {[%emt 0:00:26]} 51. Qb8+ {[%emt 0:00:37]} Qc7 {[%emt 0:00:22]} 52. Qf8+ {[%emt 0:00:05]} Qe7 {[%emt 0:00:05]} 53. Qh6+ {[%emt 0:00:03]} Kc7 {[%emt 0:00:34]} 54. Bb5 {[%emt 0:00:05]} Kd8 {[%emt 0:03:48]} 55. Qc6 {[%emt 0:00:20]} Qf7 {[%emt 0:00:33]} 56. Qxc5 {[%emt 0:00:09]} Qe7 {[%emt 0:00:17]} 57. Qc6 {[%emt 0:00:12]} 1-0